bitfinex-derivatives/quotes_ETHF0:USTF0_20260312
["timestamp","ask_amount","ask_price","bid_price","bid_amount"]
[1773309776484,4.06314909,2056.8,2055.4,2.48486975]
[1773309776678,2.12101525,2056.6,2055.4,2.48486975]
[1773309776882,2.12053637,2056.4,2055.4,2.48486975]
[1773309777792,2.07224071,2056.8,2055.7,2.48486975]
[1773309777991,2.07224071,2056.6,2055.9,2.48486975]
[1773309783594,2.07224071,2056.6,2055.4,2.36685182]
[1773309783595,2.07224071,2056.6,2055.5,2.48486975]
[1773309783794,2.02047791,2056.4,2055.5,2.48486975]
[1773309783994,2.02047791,2056.2,2055.5,2.48486975]
[1773309785293,2.00110476,2056.6,2055.5,2.48486975]
[1773309785494,2.00110476,2056.4,2055.7,2.48486975]
[1773309785897,2.00110476,2056.4,2055.9,2.48486975]
[1773309787299,1.91452373,2056.8,2055.9,2.48486975]
[1773309787499,1.91452373,2056.6,2055.9,2.48486975]
[1773309787689,1.91452373,2056.5,2055.9,2.48486975]
[1773309788394,1.91452373,2056.5,2055.9,10.63786975]
[1773309789897,1.91452373,2056.5,2056.0,2.48486975]
[1773309791298,1.91452373,2056.5,2055.9,10.63786975]
[1773309791603,1.90882215,2056.3,2055.6,2.48486975]
[1773309791803,1.90882215,2056.3,2055.7,8.163]
[1773309792298,1.90882215,2056.3,2055.7,10.64786975]
[1773309792498,0.52842453,2056.1,2055.4,11.30214993]
[1773309793197,2.65515056,2056.1,2055.3,8.168]
[1773309793503,2.65515056,2056.1,2055.2,3.16281307]
[1773309793504,0.6149682,2055.9,2055.2,3.16281307]
[1773309798408,0.6149682,2055.9,2055.2,0.02646886]
[1773309798804,0.6149682,2055.9,2055.2,3.22813866]
[1773309799905,0.6149682,2055.9,2055.2,0.02646886]
[1773309800802,0.41173396,2055.7,2055.2,0.02216249]
[1773309801001,0.4154582,2055.7,2055.0,0.022]
[1773309801207,0.4154582,2055.7,2055.0,3.2240639]
[1773309801600,0.40535668,2055.7,2055.0,3.2240639]
[1773309802010,0.40535668,2055.7,2055.0,3.2295812]
[1773309803298,0.40535668,2055.7,2055.1,3.13644477]
[1773309804903,10.93805747,2056.0,2055.1,3.13644477]
[1773309805104,6.36486966,2055.9,2055.1,3.13644477]
[1773309805306,0.51003872,2056.0,2055.1,3.13644477]
[1773309806005,0.5143229,2056.0,2055.1,3.13644477]
[1773309807602,0.5143229,2056.0,2055.2,3.106363]
[1773309809418,0.51118773,2055.9,2055.2,3.106363]
[1773309809611,0.51118773,2055.8,2055.2,3.106363]
[1773309810012,6.8628801,2055.8,2055.2,3.106363]
[1773309810514,0.40438158,2055.7,2055.2,3.106363]
[1773309811219,6.75570299,2055.8,2055.2,3.106363]
[1773309811419,0.40401062,2055.8,2055.2,3.106363]
[1773309812414,10.80463927,2056.0,2055.2,3.106363]
[1773309812614,6.35421436,2055.9,2055.2,3.106363]
[1773309812811,6.35421436,2055.8,2055.2,3.106363]
[1773309813117,0.38262117,2055.9,2055.2,3.106363]
[1773309815918,6.36117014,2056.0,2055.2,3.106363]
[1773309816119,0.00428418,2056.0,2055.3,3.08730568]
[1773309816323,0.00428418,2056.0,2055.5,3.08730568]
[1773309819526,3.16912369,2056.0,2055.5,3.08730568]
[1773309820026,0.00428418,2056.0,2055.5,3.08730568]
[1773309827222,3.10791321,2056.0,2055.5,3.08730568]
[1773309829734,0.00428418,2056.0,2055.5,3.08730568]
[1773309833729,3.17435881,2056.0,2055.5,3.08730568]
[1773309833929,0.00428418,2056.0,2055.5,3.08730568]
[1773309836732,7.23322372,2056.5,2055.5,3.08730568]
[1773309836938,5.94341708,2056.4,2055.5,3.08730568]
[1773309837234,9.11349171,2056.4,2055.5,3.08730568]
[1773309837437,7.23322372,2056.8,2055.5,3.33052568]
[1773309837631,5.94204792,2056.7,2055.5,3.33052568]
[1773309837834,3.17007463,2056.4,2055.7,3.23240039]
[1773309840434,5.94152843,2056.3,2055.0,0.0275173]
[1773309840641,3.41165895,2056.1,2055.4,3.23240039]
[1773309842328,3.15185881,2055.9,2055.4,3.23240039]
[1773309847037,1.31477045,2056.0,2055.4,3.23240039]
[1773309847233,0.24316,2056.1,2055.4,3.23240039]
[1773309847234,3.09949492,2056.1,2055.4,3.23240039]
[1773309847438,4.63405154,2056.0,2055.4,3.23240039]
[1773309847639,3.17007463,2056.5,2055.6,3.23240039]
[1773309847943,3.17007463,2056.5,2055.8,3.23240039]
[1773309851046,14.88022372,2056.6,2055.8,3.23240039]
[1773309851241,3.17007463,2056.6,2055.8,3.23240039]
[1773309858548,3.17007463,2056.5,2055.8,3.23240039]
[1773309858751,3.17007463,2056.5,2055.6,11.40140039]
[1773309858752,3.17007463,2056.0,2055.6,11.40140039]
[1773309859544,3.17007463,2056.0,2055.7,3.23240039]
[1773309859958,3.17007463,2056.4,2055.7,3.23240039]
[1773309860257,3.17007463,2056.2,2055.7,3.23240039]
[1773309862659,3.14148236,2056.4,2055.7,3.23240039]
[1773309862859,5.91080731,2056.3,2055.7,3.23240039]
[1773309863058,9.05228967,2056.3,2055.7,3.23240039]
[1773309863260,3.14148236,2056.3,2055.7,3.23240039]
[1773309868765,3.14148236,2056.1,2055.7,3.23240039]
[1773309870562,3.14148236,2056.2,2055.7,3.23240039]
[1773309871668,3.14148236,2056.1,2055.7,3.23240039]
[1773309880178,1.31448756,2056.2,2055.4,0.24009955]
[1773309880179,4.45596992,2055.8,2055.4,11.19554848]
[1773309880379,3.14148236,2055.7,2055.4,11.19554848]
[1773309880574,3.14148236,2055.7,2055.4,10.13759363]
[1773309882881,3.08099485,2056.0,2055.5,3.30078066]
[1773309883076,4.06314909,2056.3,2055.5,3.30078066]
[1773309883077,4.39548241,2056.1,2055.5,3.30078066]
[1773309883278,5.91047622,2056.0,2055.5,3.30078066]
[1773309883880,8.99147107,2056.0,2055.5,3.30078066]
[1773309884081,3.08099485,2056.3,2055.6,3.30078066]
[1773309884381,10.30633362,2056.2,2055.6,3.30078066]
[1773309884579,4.39548241,2056.2,2055.6,3.30078066]
[1773309884777,3.08099485,2056.1,2055.6,3.30078066]
[1773309885878,1.31448756,2056.0,2055.6,3.30078066]
[1773309886079,4.39548241,2056.0,2055.6,3.30078066]
[1773309886279,4.39548241,2056.0,2055.6,11.47078066]
[1773309886786,4.39548241,2056.0,2055.7,3.30078066]
[1773309887176,3.08099485,2055.9,2055.6,11.47078066]
[1773309887584,3.08099485,2055.9,2055.6,3.00618328]
[1773309887885,3.08099485,2055.9,2055.6,11.17718328]
[1773309891283,4.45845903,2055.8,2055.4,3.11111874]
[1773309891479,3.14397147,2055.7,2055.4,3.11111874]
[1773309892385,4.45845903,2055.8,2055.4,3.11111874]
[1773309893481,3.14397147,2055.7,2055.2,3.11111874]
[1773309893680,3.14397147,2055.7,2055.3,11.29311874]
[1773309893880,4.45845903,2055.6,2055.3,3.11111874]
[1773309894081,4.45845903,2055.6,2055.3,11.29311874]
[1773309895086,4.45845903,2055.6,2055.2,11.29611874]
[1773309895282,3.14397147,2055.5,2055.2,11.29611874]
[1773309895785,4.45845903,2055.6,2055.2,11.29611874]
[1773309895978,4.45845903,2055.6,2055.3,3.11111874]
[1773309896789,3.14397147,2055.5,2055.1,3.11111874]
[1773309896992,3.14397147,2055.5,2055.2,11.30011874]
[1773309897981,4.45845903,2055.6,2055.2,11.30011874]
[1773309898187,4.45845903,2055.6,2055.3,3.11111874]
[1773309898883,3.14397147,2055.3,2055.0,0.0275173]
[1773309899091,4.06314909,2056.2,2055.0,0.0275173]
[1773309899092,3.14397147,2056.3,2055.4,3.11111874]
[1773309899286,4.45845903,2056.3,2055.6,3.11111874]
[1773309899482,3.14397147,2056.2,2055.6,3.11111874]
[1773309900691,4.45845903,2056.3,2055.6,3.11111874]
[1773309903692,3.14397147,2056.2,2055.6,3.11111874]
[1773309906589,3.14397147,2056.2,2055.6,3.35722664]
[1773309911387,1.31448756,2056.5,2055.8,3.11111874]
[1773309911588,3.14397147,2056.3,2055.8,3.11111874]
[1773309914901,3.14397147,2056.2,2055.8,3.11111874]
[1773309915194,3.14397147,2056.2,2055.7,3.11111874]
[1773309922506,3.12994335,2056.4,2055.8,3.10657034]
[1773309922803,3.12994335,2056.4,2056.0,3.10657034]
[1773309923200,3.12994335,2056.6,2056.0,3.10657034]
[1773309927502,5.37763665,2057.1,2056.4,3.10657034]
[1773309927700,3.12994335,2056.9,2056.4,3.10657034]
[1773309928503,3.13355246,2056.9,2056.4,3.10657034]
[1773309929010,6.33946682,2057.3,2056.8,3.10657034]
[1773309929011,3.12994335,2057.3,2056.8,3.10657034]
[1773309930100,0.00537913,2057.3,2056.9,3.10657034]
[1773309930303,3.13532248,2057.3,2056.8,8.29423646]
[1773309930508,3.13532248,2057.3,2056.9,3.10657034]
[1773309931011,3.13532248,2057.3,2056.8,11.4008068]
[1773309931205,3.12994335,2057.2,2056.8,11.4008068]
[1773309931710,3.12994335,2057.2,2056.9,3.10657034]
[1773309932810,3.13532248,2057.3,2056.9,3.10657034]
[1773309933208,3.12994335,2057.4,2056.9,3.10657034]
[1773309934300,3.13505568,2057.4,2056.9,3.10657034]
[1773309941819,3.13505568,2057.4,2056.8,3.1118068]
[1773309944723,3.09182622,2057.3,2056.6,3.15902599]
[1773309945017,3.09182622,2057.1,2056.5,3.15902599]
[1773309945614,3.09182622,2057.3,2056.5,3.15902599]
[1773309945815,3.09182622,2057.3,2056.5,3.16401893]
[1773309952532,3.09182622,2057.3,2056.6,3.18864547]
[1773309952835,0.00511233,2057.4,2056.8,3.18864547]
[1773309953030,0.00511233,2057.4,2056.9,3.18864547]
[1773309953031,3.27679245,2057.3,2056.9,3.18864547]
[1773309957737,3.28190478,2057.4,2056.9,3.18864547]
[1773309958440,0.00511233,2057.4,2056.9,3.18864547]
[1773309958837,9.11273625,2057.4,2056.9,3.18864547]
[1773309959037,3.28190478,2057.4,2056.9,3.18864547]
[1773309967746,0.00511233,2057.4,2056.9,3.18864547]
[1773309968142,3.28190478,2057.4,2056.7,3.42616187]
[1773309971246,3.27679245,2057.2,2056.5,0.00499294]
[1773309971452,3.27679245,2057.0,2056.5,0.00499294]
[1773309971648,3.27679245,2057.0,2056.5,3.19363841]
[1773309971953,3.27679245,2057.0,2056.5,0.00499294]
[1773309972253,3.27679245,2057.0,2056.5,3.19363841]
[1773309975554,3.27679245,2057.2,2056.5,3.19363841]
[1773309978159,3.28190478,2057.4,2056.7,3.18864547]
[1773309978456,9.10461415,2057.3,2056.7,3.18864547]
[1773309978656,3.27679245,2057.3,2056.7,3.18864547]
[1773309980558,3.27679245,2057.3,2056.8,3.12896219]
[1773309986767,3.27679245,2057.3,2056.6,11.58196219]
[1773309987664,3.24476983,2057.1,2056.6,11.58196219]
[1773309988366,3.24476983,2057.1,2056.7,3.12896219]
[1773310001270,3.24476983,2057.1,2056.5,3.13395513]
[1773310001475,3.24476983,2056.7,2056.4,3.12896219]
[1773310001676,3.24476983,2056.8,2056.4,3.12896219]
[1773310002172,4.55797103,2057.0,2056.4,3.12896219]
[1773310002374,3.24476983,2057.0,2056.5,3.12896219]
[1773310002576,3.24476983,2057.0,2056.6,3.12896219]
[1773310004676,1.3132012,2057.2,2056.6,3.12896219]
[1773310004879,8.82458721,2057.1,2056.6,3.12896219]
[1773310005079,2.99253251,2057.1,2056.6,3.12896219]
[1773310007382,1.3132012,2057.2,2056.6,3.12896219]
[1773310007383,2.99253251,2056.9,2056.6,3.12896219]
[1773310007683,2.99253251,2056.9,2056.5,11.38953527]
[1773310007878,2.99253251,2056.9,2056.4,11.4185681]
[1773310008078,2.99253251,2056.7,2056.4,11.4185681]
[1773310010486,2.99253251,2056.7,2056.5,3.13202281]
[1773310010685,4.34207091,2056.8,2056.5,3.13202281]
[1773310014488,3.02886971,2056.5,2056.1,11.70402281]
[1773310014690,3.02886971,2056.5,2056.1,11.70502281]
[1773310015096,3.02886971,2056.5,2056.1,3.13202281]
[1773310015297,3.02886971,2056.5,2056.1,0.00363043]
[1773310015994,3.02886971,2056.3,2056.0,11.71002281]
[1773310016595,3.02886971,2056.3,2055.9,11.71802281]
[1773310017192,3.02886971,2056.3,2055.9,11.72417697]
[1773310018699,3.02886971,2056.3,2055.9,8.59215416]
[1773310021505,3.02886971,2056.3,2055.9,11.72417697]
[1773310022710,3.02886971,2055.9,2055.5,3.13202281]
[1773310023713,3.03421103,2055.9,2055.5,3.13562755]
[1773310025907,0.00534132,2055.9,2055.5,3.13562755]
[1773310027805,4.34207091,2056.2,2055.5,3.13562755]
[1773310028006,3.02886971,2056.2,2055.7,3.13202281]
[1773310028309,4.34207091,2056.2,2055.7,3.13202281]
[1773310028707,4.34207091,2056.2,2055.8,3.13202281]
[1773310028906,4.34689644,2056.2,2055.8,3.13202281]
[1773310029104,3.02886971,2056.1,2055.8,3.13202281]
[1773310029304,3.02886971,2055.9,2055.6,3.13202281]
[1773310029502,3.02886971,2055.9,2055.5,0.00360474]
[1773310030408,3.02886971,2055.9,2055.5,3.13562755]
[1773310031207,3.02886971,2055.9,2055.2,3.13202281]
[1773310031511,3.02886971,2055.9,2055.3,3.13202281]
[1773310031908,1.3132012,2055.8,2055.3,3.13202281]
[1773310032213,3.02886971,2055.7,2055.3,3.138218]
[1773310033211,4.34207091,2055.6,2055.3,0.00619519]
[1773310033412,4.34207091,2055.6,2055.1,11.80402281]
[1773310033413,3.02886971,2055.5,2055.1,11.80402281]
[1773310034613,3.02886971,2055.5,2055.1,8.69021731]
[1773310035014,3.02886971,2055.5,2055.2,3.13202281]
[1773310035210,3.02886971,2055.5,2055.1,8.69021731]
[1773310036914,3.02886971,2055.5,2055.2,3.13202281]
[1773310037908,3.02886971,2055.5,2055.1,3.13833484]
[1773310038613,4.34207091,2055.2,2054.8,0.022]
[1773310038813,1.3132012,2055.2,2054.9,3.16033484]
[1773310039015,3.02886971,2055.3,2054.9,3.16033484]
[1773310039614,3.02886971,2055.3,2054.9,3.1663661]
[1773310042119,3.02886971,2055.3,2054.9,3.13805407]
[1773310043014,3.04151693,2055.4,2054.9,3.13805407]
[1773310043209,3.04151693,2055.4,2055.0,3.08143149]
[1773310044619,4.35471813,2055.6,2055.0,3.08143149]
[1773310044816,3.04151693,2055.5,2055.0,3.08143149]
[1773310050319,3.04151693,2055.3,2055.0,3.08143149]
[1773310050521,3.04151693,2055.3,2055.0,0.02831203]
[1773310051515,3.04151693,2055.3,2055.0,3.08143149]
[1773310052717,3.04151693,2055.3,2055.0,0.02831203]
[1773310052918,3.04151693,2055.1,2054.9,0.00603126]
[1773310053125,4.35471813,2055.2,2054.9,3.05915072]
[1773310053318,4.35471813,2055.2,2054.9,0.00603126]
[1773310053516,3.04151693,2055.1,2054.9,0.00603126]
[1773310053920,3.04151693,2055.5,2054.9,0.00603126]
[1773310054326,3.04151693,2055.5,2054.9,3.05915072]
[1773310056124,3.04151693,2055.5,2054.9,0.00603126]
[1773310059230,5.82936832,2055.4,2054.9,0.00603126]
[1773310059427,3.04151693,2055.3,2054.9,0.00603126]
[1773310060529,3.04151693,2055.3,2054.9,3.05915072]
[1773310060733,3.04151693,2055.6,2054.9,3.05915072]
[1773310060927,3.04151693,2055.5,2054.9,3.05915072]
[1773310062528,3.04151693,2055.7,2054.9,3.05915072]
[1773310062733,3.04151693,2055.7,2055.0,3.05311946]
[1773310063633,3.04151693,2055.7,2055.1,3.19678705]
[1773310065636,4.06314909,2056.0,2055.1,3.19678705]
[1773310065637,3.12521593,2056.0,2055.1,3.19678705]
[1773310065836,5.83574319,2055.9,2055.1,3.19678705]
[1773310066038,3.12521593,2056.0,2055.1,3.19678705]
[1773310068138,3.12521593,2055.8,2055.1,3.19678705]
[1773310070960,3.12521593,2055.8,2054.9,3.29656674]
[1773310076652,3.14471887,2055.6,2054.9,3.29656674]
[1773310077456,3.14471887,2055.6,2054.9,3.04973012]
[1773310077663,3.14471887,2055.4,2054.9,3.04973012]
[1773310083568,3.14471887,2055.4,2054.9,0.00603126]
[1773310084665,3.14471887,2055.4,2054.8,0.022]
[1773310084865,1.31558185,2055.5,2054.4,3.06569886]
[1773310084866,3.14471887,2054.8,2054.4,3.06569886]
[1773310085568,3.14471887,2054.8,2054.4,0.022]
[1773310085763,3.14471887,2054.8,2054.4,0.02601654]
[1773310085958,3.14471887,2054.8,2054.2,3.06569886]
[1773310086566,3.14471887,2054.8,2054.2,3.3060847]
[1773310086974,3.14471887,2054.8,2054.2,3.31091476]
[1773310088967,3.14471887,2054.8,2054.2,3.07052892]
[1773310089862,3.14471887,2054.8,2054.2,0.02683006]
[1773310090261,0.24326,2055.3,2054.0,3.06569886]
[1773310090262,3.14471887,2054.6,2054.0,3.06569886]
[1773310090668,3.14471887,2054.6,2053.4,3.06569886]
[1773310090867,3.14471887,2054.1,2053.5,3.04369886]
[1773310091171,3.14471887,2054.1,2053.4,0.022]
[1773310091368,3.14906252,2054.1,2053.6,0.02570965]
[1773310092468,3.14906252,2054.1,2053.4,0.022]
[1773310092672,3.14906252,2054.1,2053.4,3.06569886]
[1773310093572,3.14906252,2054.1,2053.4,3.06934507]
[1773310093772,3.14906252,2054.1,2053.4,0.02564621]
[1773310093972,3.14471887,2054.0,2053.4,0.02564621]
[1773310094170,3.14471887,2054.0,2053.4,3.06934507]
[1773310095470,3.14906252,2054.1,2053.4,3.06934507]
[1773310095671,0.00434365,2054.1,2053.4,3.06934507]
[1773310096177,3.14471887,2054.5,2053.6,3.04369886]
[1773310096375,3.14471887,2054.5,2053.7,3.04369886]
[1773310096572,3.14471887,2054.7,2053.9,3.04369886]
[1773310097175,3.14866899,2054.7,2053.9,3.04369886]
[1773310104880,3.14866899,2054.7,2053.9,3.28592108]
[1773310113584,3.14866899,2054.7,2054.1,1.31608055]
[1773310113884,3.14866899,2054.7,2054.2,2.9569058]
[1773310114985,3.09547822,2054.9,2054.4,2.95112365]
[1773310115784,3.09547822,2054.9,2053.9,3.19077283]
[1773310115987,3.09547822,2054.4,2053.9,3.19077283]
[1773310117190,3.09547822,2054.6,2053.9,3.19077283]
[1773310119592,3.09547822,2054.4,2053.9,3.19077283]
[1773310119886,3.09547822,2054.4,2053.9,0.24222222]
[1773310120091,3.09547822,2054.2,2053.5,2.93897618]
[1773310120497,3.09547822,2054.2,2053.7,2.93275315]
[1773310120993,1.31608055,2054.5,2053.9,2.93320628]
[1773310120994,3.09547822,2054.3,2053.9,2.93320628]
[1773310123995,3.09547822,2054.3,2053.7,2.89633179]
[1773310125392,3.09547822,2054.3,2053.5,0.48321007]
[1773310125592,3.09547822,2054.3,2053.5,3.37954186]
[1773310125893,2.93394245,2054.1,2053.2,2.91833179]
[1773310126093,2.93394245,2053.9,2053.3,2.89633179]
[1773310126989,2.93394245,2053.9,2053.3,2.90109812]
[1773310127196,2.93394245,2053.9,2053.5,2.89633179]
[1773310130494,2.93394245,2053.9,2053.4,2.9026485]
[1773310130695,3.05026316,2053.6,2053.3,0.00476633]
[1773310132997,4.36634371,2053.6,2053.2,0.01804989]
[1773310133304,3.05026316,2053.5,2053.2,0.01804989]
[1773310133994,3.05026316,2053.5,2053.2,0.02253577]
[1773310135003,3.05026316,2053.5,2053.0,0.022]
[1773310135900,3.05026316,2053.5,2053.0,0.02658353]
[1773310137302,3.05026316,2053.3,2053.0,0.02658353]
[1773310137503,3.05026316,2053.4,2053.0,2.92923203]
[1773310138502,3.05564872,2053.4,2053.0,2.92923203]
[1773310139406,3.05564872,2053.4,2053.0,0.02658353]
[1773310140301,7.649,2053.8,2053.2,2.9026485]
[1773310140302,3.05026316,2053.8,2053.2,2.9026485]
[1773310140709,3.05026316,2053.8,2053.4,2.9026485]
[1773310141410,3.05644246,2053.8,2053.4,2.9026485]
[1773310142010,3.05026316,2054.0,2053.6,2.9026485]
[1773310142911,3.05500682,2054.0,2053.6,2.9026485]
[1773310146316,3.05500682,2054.0,2053.5,2.9026485]
[1773310147813,3.05500682,2054.0,2053.5,3.14586741]
[1773310148508,3.05500682,2054.0,2053.1,11.8596485]
[1773310148712,3.05026316,2053.7,2053.2,2.9026485]
[1773310150114,3.05026316,2053.9,2053.3,1.31608055]
[1773310150315,3.05026316,2053.9,2053.4,2.9026485]
[1773310152115,3.05026316,2053.9,2053.2,2.9026485]
[1773310152620,3.05026316,2053.9,2053.1,1.55894533]
[1773310153218,3.05026316,2053.9,2053.1,4.43464446]
[1773310153815,3.05026316,2053.9,2053.1,0.24286478]
[1773310154011,3.05026316,2053.4,2053.0,2.90288201]
[1773310154417,3.05026316,2053.4,2053.0,2.89514719]
[1773310154618,3.05026316,2053.8,2053.1,2.86856366]
[1773310157624,3.05026316,2053.6,2053.1,2.86856366]
[1773310159525,3.05026316,2053.6,2053.1,2.85778889]
[1773310159824,4.07182843,2054.0,2053.0,1.34266408]
[1773310159825,3.05026316,2053.7,2053.3,2.85852061]
[1773310160028,4.36634371,2053.9,2053.3,2.85852061]
[1773310160228,2.75004918,2053.7,2053.3,2.85852061]
[1773310160420,2.75004918,2053.7,2053.2,2.85129524]
[1773310161632,2.75004918,2053.7,2053.1,2.84476649]
[1773310162127,2.75004918,2053.6,2053.0,0.02658353]
[1773310162525,2.75004918,2053.6,2053.2,2.83799073]
[1773310162731,2.75004918,2053.9,2053.4,2.83799073]
[1773310164031,2.75004918,2053.9,2053.5,4.15672485]
[1773310165032,2.75004918,2053.9,2053.5,2.8406443]
[1773310165239,2.75004918,2053.9,2053.3,4.16915072]
[1773310165530,2.75004918,2053.9,2053.4,2.84565811]
[1773310168833,2.75004918,2053.9,2053.2,2.82505145]
[1773310170837,2.75004918,2053.9,2053.2,3.06755095]
[1773310171638,2.75004918,2053.9,2053.2,0.2424995]
[1773310171840,2.75004918,2053.9,2053.0,2.93127793]
[1773310175142,2.75004918,2053.9,2053.0,3.1765773]
[1773310177444,2.75004918,2053.7,2053.0,3.1765773]
[1773310177940,2.75479284,2054.0,2053.0,2.93127793]
[1773310178143,2.75004918,2053.8,2053.0,2.93127793]
[1773310180153,2.75004918,2053.6,2053.0,0.02658353]
[1773310182646,2.75004918,2053.4,2052.4,0.022]
[1773310182952,2.61870492,2053.1,2052.4,2.74742108]
[1773310183146,2.61870492,2052.9,2052.4,2.74742108]
[1773310183751,2.61870492,2052.9,2052.4,2.75288891]
[1773310183953,2.61870492,2053.1,2052.4,2.75288891]
[1773310184954,2.61870492,2053.3,2052.6,2.64904604]
[1773310185454,2.61870492,2053.7,2052.6,2.64904604]
[1773310185644,2.61870492,2053.7,2052.7,2.64904604]
[1773310185849,2.61870492,2053.9,2053.1,2.64904604]
[1773310187454,2.61870492,2053.9,2053.2,1.31763108]
[1773310187654,2.61870492,2053.9,2053.3,2.64904604]
[1773310188053,0.00474366,2054.0,2053.3,2.64904604]
[1773310188851,2.62344858,2054.0,2053.3,2.64904604]
[1773310191051,0.00474366,2054.0,2053.5,2.80473177]
[1773310191255,2.79898897,2054.1,2053.5,2.80473177]
[1773310192153,2.80303421,2054.1,2053.5,2.80473177]
[1773310200956,2.80303421,2054.1,2053.4,9.34719453]
[1773310200957,2.79898897,2054.4,2053.7,2.80473177]
[1773310201961,2.80365408,2054.4,2053.6,2.80473177]
[1773310203258,4.36464516,2054.4,2053.5,11.97573177]
[1773310203459,1.31763108,2054.0,2053.2,11.99173177]
[1773310203655,2.79898897,2053.9,2053.1,2.80473177]
[1773310203858,2.79898897,2053.9,2053.0,11.99373177]
[1773310204065,2.79898897,2053.9,2053.0,11.99573177]
[1773310204562,2.79898897,2053.9,2053.1,2.80473177]
[1773310207663,2.79898897,2053.9,2053.2,2.80473177]
[1773310207865,2.79898897,2054.3,2053.2,2.80473177]
[1773310208163,2.79898897,2054.1,2053.2,2.80473177]
[1773310210167,2.79898897,2054.1,2053.3,2.80473177]
[1773310212767,2.79898897,2054.1,2053.2,2.80473177]
[1773310215271,2.79898897,2053.9,2053.2,2.80473177]
[1773310216676,2.79898897,2053.9,2053.0,0.48711286]
[1773310216974,2.79898897,2053.9,2053.1,12.06773177]
[1773310217476,2.79898897,2053.9,2053.1,2.80473177]
[1773310218476,2.79898897,2053.9,2053.0,3.04831463]
[1773310222378,2.65484446,2053.7,2053.0,3.04831463]
[1773310223980,13.70557283,2054.3,2053.0,3.04831463]
[1773310223981,2.65484446,2054.0,2053.0,3.04831463]
[1773310224377,2.65484446,2054.0,2053.2,2.64249148]
[1773310224684,2.65484446,2054.3,2053.2,2.64249148]
[1773310224986,2.65484446,2054.1,2053.2,2.64249148]
[1773310230286,2.65484446,2054.1,2053.4,2.64249148]
[1773310235683,2.65484446,2054.1,2053.6,2.64249148]
[1773310236787,2.65484446,2054.1,2053.5,1.31683216]
[1773310236979,2.65484446,2054.1,2053.5,3.95932364]
[1773310240893,2.65484446,2054.1,2053.6,2.64249148]
[1773310248198,2.4706189,2054.4,2054.0,2.72597104]
[1773310248399,2.4706189,2054.4,2054.0,2.73193984]
[1773310249599,2.4706189,2054.4,2054.0,0.0059688]
[1773310249800,2.46595379,2054.8,2054.2,2.72597104]
[1773310250001,2.46595379,2054.7,2054.2,2.72597104]
[1773310250203,2.46595379,2054.7,2054.4,2.48350354]
[1773310250403,2.60139995,2054.9,2054.4,2.48350354]
[1773310250907,2.60697708,2054.9,2054.4,2.48350354]
[1773310251402,2.60697708,2054.9,2054.6,2.48350354]
[1773310251902,0.31507028,2054.9,2054.6,2.48350354]
[1773310252300,0.31507028,2054.9,2054.5,2.48350354]
[1773310252601,0.31507028,2054.9,2054.4,2.48350354]
[1773310258114,0.31507028,2054.9,2054.4,2.72243018]
[1773310258709,0.00557713,2054.9,2054.5,1.31683216]
[1773310258914,2.60697708,2054.9,2054.6,2.48350354]
[1773310259715,0.00557713,2054.9,2054.6,2.48350354]
[1773310261214,2.60139995,2055.1,2054.8,2.48350354]
[1773310261411,2.60139995,2055.1,2054.8,2.30248317]
[1773310262416,2.60715164,2055.1,2054.8,2.12125214]
[1773310262715,2.60715164,2055.1,2054.8,1.9400667]
[1773310263617,2.60715164,2055.1,2054.6,2.48350354]
[1773310266914,2.60715164,2055.1,2054.4,2.72243018]
[1773310267117,2.60715164,2055.1,2054.6,2.48350354]
[1773310267920,0.00575169,2055.1,2054.8,2.48350354]
[1773310268120,2.60715164,2055.1,2054.8,2.48350354]
[1773310269021,2.60139995,2055.3,2055.0,2.48350354]
[1773310270020,2.60624674,2055.3,2055.0,2.48350354]
[1773310271723,2.60624674,2055.3,2054.9,3.8003357]
[1773310272217,2.60624674,2055.3,2055.0,2.48350354]
[1773310272422,2.60624674,2055.3,2054.9,2.48350354]
[1773310272816,2.60624674,2055.3,2054.8,11.90850354]
[1773310273015,2.60624674,2055.3,2054.8,2.48350354]
[1773310273220,2.60139995,2054.8,2054.2,2.48350354]
[1773310273420,2.60139995,2054.8,2054.3,2.48350354]
[1773310273824,2.60139995,2054.8,2054.4,2.48350354]
[1773310276323,2.60139995,2055.0,2054.6,2.48350354]
[1773310276929,2.60139995,2055.1,2054.6,2.48350354]
[1773310277727,2.60139995,2055.1,2054.4,2.48350354]
[1773310277922,2.60139995,2055.0,2054.5,2.48350354]
[1773310278330,2.60139995,2055.2,2054.7,2.48350354]
[1773310279227,5.95693923,2055.1,2054.7,2.48350354]
[1773310279531,8.55833918,2055.1,2054.7,2.48350354]
[1773310279731,2.60139995,2055.1,2054.7,2.48350354]
[1773310283434,3.91823211,2055.1,2054.4,0.24687271]
[1773310283634,2.33681155,2055.0,2054.4,2.6377568]
[1773310291640,2.33681155,2055.0,2054.4,2.87736446]
[1773310294342,2.33681155,2055.0,2054.6,2.6377568]
[1773310296046,2.3590531,2055.3,2054.6,2.6377568]
[1773310296244,5.9580724,2055.2,2054.6,2.6377568]
[1773310297246,8.30851902,2055.2,2054.6,2.6377568]
[1773310297446,2.35044662,2055.2,2054.6,2.6377568]
[1773310310454,0.00484679,2055.3,2054.6,2.6377568]
[1773310310952,8.27342905,2055.3,2054.6,2.6377568]
[1773310311149,5.96257044,2055.2,2054.6,2.6377568]
[1773310311453,2.31085861,2055.3,2054.6,2.6377568]
[1773310312059,0.00484679,2055.3,2054.8,2.79607262]
[1773310312359,2.30686791,2055.7,2055.0,2.79607262]
[1773310313161,2.31241867,2055.7,2055.0,2.79607262]
[1773310314860,3.62789018,2055.7,2055.0,2.79607262]
[1773310315157,2.53736497,2055.6,2054.6,2.79607262]
[1773310315362,2.29044342,2055.2,2054.6,2.79607262]
[1773310315558,2.29044342,2055.2,2054.5,9.351]
[1773310315751,2.29044342,2055.2,2054.5,12.14707262]
[1773310316458,2.29044342,2055.2,2054.5,2.79607262]
[1773310320658,2.17014336,2055.0,2054.4,0.24563153]
[1773310320859,2.17014336,2055.0,2054.3,2.79607262]
[1773310321063,2.17014336,2055.0,2054.0,0.0059688]
[1773310321264,2.17014336,2055.0,2054.1,2.79607262]
[1773310324871,2.17014336,2055.0,2054.2,2.79607262]
[1773310331172,2.08724646,2055.2,2054.2,2.79607262]
[1773310335184,2.08724646,2055.2,2054.2,3.03945262]
[1773310341085,2.08724646,2055.2,2054.3,2.58843376]
[1773310344190,7.89565232,2055.1,2054.3,2.58843376]
[1773310344390,1.94309898,2055.1,2054.3,2.58843376]
[1773310344887,1.94309898,2055.1,2054.5,2.58843376]
[1773310345389,1.93869055,2055.5,2054.7,2.58843376]
[1773310345593,5.95729577,2055.4,2054.7,2.58843376]
[1773310346090,1.93869055,2055.5,2054.7,2.58843376]
[1773310347088,1.93869055,2055.5,2054.8,2.58843376]
[1773310350795,2.07660308,2055.6,2054.8,2.58843376]
[1773310350996,2.08182297,2055.7,2055.0,2.58843376]
[1773310359601,2.08182297,2055.7,2055.1,2.58843376]
[1773310361695,2.03260514,2055.4,2055.1,2.58843376]
[1773310361898,2.03260514,2055.4,2054.9,2.58843376]
[1773310362297,2.02804943,2055.2,2054.9,2.58843376]